[Event "December 19 Late 2023"]
[Site "https://www.chess.com"]
[Date "2023.12.19"]
[Round "2"]
[White "Khlebovich, Alexander"]
[Black "Senft, Sean"]
[Result "1-0"]
[Board "47"]
[TimeControl "180+1"]
[WhiteFideId "4169123"]
[BlackFideId "2044960"]
[WhiteElo "2334"]
[BlackElo "2005"]
[WhiteTeam "RUS"]
[BlackTeam "USA"]
[WhiteClock "0:01:00"]
[BlackClock "0:00:19"]

1. d4 {[%clk 0:03:00]}  d5 {[%clk 0:03:00]} 2. c4 {[%clk 0:03:00]}  c6 {[%clk 0:03:00]} 3. Nf3 {[%clk 0:03:00]}  Nf6 {[%clk 0:03:01]} 4. e3 {[%clk 0:03:01]}  a6 {[%clk 0:03:02]} 5. Bd3 {[%clk 0:02:59]}  Bg4 {[%clk 0:03:01]} 6. h3 {[%clk 0:02:59]}  Bh5 {[%clk 0:03:02]} 7. O-O {[%clk 0:02:58]}  e6 {[%clk 0:03:02]} 8. Nbd2 {[%clk 0:02:55]}  Nbd7 {[%clk 0:03:02]} 9. Qb3 {[%clk 0:02:54]}  Ra7 {[%clk 0:02:58]} 10. a4 {[%clk 0:02:53]}  Bd6 {[%clk 0:02:57]} 11. e4 {[%clk 0:02:52]}  dxe4 {[%clk 0:02:57]} 12. Nxe4 {[%clk 0:02:51]}  Nxe4 {[%clk 0:02:58]} 13. Bxe4 {[%clk 0:02:51]}  O-O {[%clk 0:02:55]} 14. a5 {[%clk 0:02:35]}  c5 {[%clk 0:02:34]} 15. g4 {[%clk 0:01:51]}  Bg6 {[%clk 0:02:33]} 16. Bxg6 {[%clk 0:01:51]}  hxg6 {[%clk 0:02:32]} 17. Rd1 {[%clk 0:01:49]}  cxd4 {[%clk 0:02:12]} 18. Nxd4 {[%clk 0:01:48]}  Nc5 {[%clk 0:02:00]} 19. Qb6 {[%clk 0:01:29]}  Ra8 {[%clk 0:01:30]} 20. Be3 {[%clk 0:01:27]}  Qxb6 {[%clk 0:01:26]} 21. axb6 {[%clk 0:01:26]}  Rfd8 {[%clk 0:01:22]} 22. b4 {[%clk 0:01:26]}  Ne4 {[%clk 0:01:18]} 23. c5 {[%clk 0:01:22]}  Be5 {[%clk 0:01:17]} 24. Rac1 {[%clk 0:01:17]}  Bxd4 {[%clk 0:01:08]} 25. Bxd4 {[%clk 0:01:14]}  Rac8 {[%clk 0:01:08]} 26. Be5 {[%clk 0:01:07]}  Nf6 {[%clk 0:00:31]} 27. Rxd8+ {[%clk 0:01:01]}  Rxd8 {[%clk 0:00:31]} 28. c6 {[%clk 0:01:01]}  bxc6 {[%clk 0:00:23]} 29. b7 {[%clk 0:01:01]}  Nd7 {[%clk 0:00:19]} 30. Rd1 {[%clk 0:01:00]} 1-0

[Event "December 19 Late 2023"]
[Site "https://www.chess.com"]
[Date "2023.12.19"]
[Round "2"]
[White "Colbow, Collin"]
[Black "Fawzy, Adham"]
[Result "1-0"]
[Board "48"]
[TimeControl "180+1"]
[WhiteFideId "16201132"]
[BlackFideId "10613129"]
[WhiteElo "2321"]
[BlackElo "2550"]
[WhiteTeam "GER"]
[BlackTeam "EGY"]
[WhiteClock "0:00:21"]
[BlackClock "0:00:38"]

1. e4 {[%clk 0:03:00]}  c5 {[%clk 0:02:57]} 2. Nf3 {[%clk 0:02:58]}  Nc6 {[%clk 0:02:57]} 3. d4 {[%clk 0:02:58]}  cxd4 {[%clk 0:02:58]} 4. Nxd4 {[%clk 0:02:58]}  e5 {[%clk 0:02:59]} 5. Nb5 {[%clk 0:02:58]}  d6 {[%clk 0:02:59]} 6. c4 {[%clk 0:02:57]}  Be6 {[%clk 0:02:58]} 7. N1c3 {[%clk 0:02:54]}  a6 {[%clk 0:02:59]} 8. Na3 {[%clk 0:02:55]}  g6 {[%clk 0:02:59]} 9. Be3 {[%clk 0:02:49]}  Bg7 {[%clk 0:02:59]} 10. Be2 {[%clk 0:02:45]}  Nf6 {[%clk 0:02:58]} 11. Nc2 {[%clk 0:02:41]}  Rc8 {[%clk 0:02:58]} 12. O-O {[%clk 0:02:39]}  O-O {[%clk 0:02:58]} 13. Rc1 {[%clk 0:02:37]}  Ne7 {[%clk 0:02:58]} 14. b3 {[%clk 0:02:32]}  b5 {[%clk 0:02:58]} 15. Nb4 {[%clk 0:02:02]}  bxc4 {[%clk 0:02:53]} 16. bxc4 {[%clk 0:01:51]}  Bxc4 {[%clk 0:02:52]} 17. Bxc4 {[%clk 0:01:52]}  Rxc4 {[%clk 0:02:51]} 18. Qb3 {[%clk 0:01:45]}  Rc8 {[%clk 0:02:37]} 19. Nxa6 {[%clk 0:01:39]}  Qa5 {[%clk 0:02:33]} 20. Nb4 {[%clk 0:01:21]}  Rb8 {[%clk 0:02:31]} 21. a3 {[%clk 0:01:21]}  Rfc8 {[%clk 0:02:32]} 22. Rfd1 {[%clk 0:01:16]}  Ra8 {[%clk 0:02:05]} 23. Rxd6 {[%clk 0:01:07]}  Qxa3 {[%clk 0:02:03]} 24. Qxa3 {[%clk 0:01:08]}  Rxa3 {[%clk 0:02:03]} 25. Ncd5 {[%clk 0:01:01]}  Nfxd5 {[%clk 0:01:36]} 26. Nxd5 {[%clk 0:00:52]}  Rxc1+ {[%clk 0:01:25]} 27. Bxc1 {[%clk 0:00:53]}  Ra1 {[%clk 0:01:25]} 28. Nxe7+ {[%clk 0:00:44]}  Kf8 {[%clk 0:01:25]} 29. Rd1 {[%clk 0:00:44]}  Rxc1 {[%clk 0:00:43]} 30. Nxg6+ {[%clk 0:00:43]}  hxg6 {[%clk 0:00:44]} 31. Rxc1 {[%clk 0:00:43]}  Ke7 {[%clk 0:00:44]} 32. Rc6 {[%clk 0:00:43]}  Bh6 {[%clk 0:00:45]} 33. Kf1 {[%clk 0:00:41]}  Bd2 {[%clk 0:00:45]} 34. g3 {[%clk 0:00:39]}  Bh6 {[%clk 0:00:46]} 35. h4 {[%clk 0:00:39]}  Bd2 {[%clk 0:00:46]} 36. Ke2 {[%clk 0:00:39]}  Bh6 {[%clk 0:00:47]} 37. Kd3 {[%clk 0:00:39]}  Kd7 {[%clk 0:00:46]} 38. Ra6 {[%clk 0:00:38]}  Ke7 {[%clk 0:00:46]} 39. Kc4 {[%clk 0:00:39]}  Bd2 {[%clk 0:00:46]} 40. Kd5 {[%clk 0:00:38]}  Be1 {[%clk 0:00:47]} 41. Ra2 {[%clk 0:00:37]}  Bc3 {[%clk 0:00:47]} 42. g4 {[%clk 0:00:30]}  Kf8 {[%clk 0:00:46]} 43. f3 {[%clk 0:00:23]}  Kg7 {[%clk 0:00:46]} 44. Ra8 {[%clk 0:00:21]}  Bb2 {[%clk 0:00:45]} 45. Re8 {[%clk 0:00:21]}  Kf6 {[%clk 0:00:41]} 46. g5+ {[%clk 0:00:20]}  Kg7 {[%clk 0:00:38]} 47. Rxe5 {[%clk 0:00:21]} 1-0

[Event "December 19 Late 2023"]
[Site "https://www.chess.com"]
[Date "2023.12.19"]
[Round "2"]
[White "Bryakin, Mikhail"]
[Black "Vafin, Ayrat"]
[Result "1-0"]
[Board "50"]
[TimeControl "180+1"]
[WhiteFideId "4165314"]
[BlackFideId "4146530"]
[WhiteElo "2495"]
[BlackElo "2317"]
[WhiteTeam "SRB"]
[BlackTeam "RUS"]
[WhiteClock "0:00:32"]
[BlackClock "0:00:00"]

1. Nf3 {[%clk 0:02:58]}  d5 {[%clk 0:03:00]} 2. e3 {[%clk 0:02:56]}  Nf6 {[%clk 0:03:00]} 3. b3 {[%clk 0:02:55]}  Bg4 {[%clk 0:02:59]} 4. Bb2 {[%clk 0:02:54]}  Nbd7 {[%clk 0:02:59]} 5. h3 {[%clk 0:02:53]}  Bxf3 {[%clk 0:02:59]} 6. Qxf3 {[%clk 0:02:54]}  e5 {[%clk 0:02:59]} 7. g4 {[%clk 0:02:52]}  h6 {[%clk 0:02:59]} 8. Bg2 {[%clk 0:02:53]}  c6 {[%clk 0:02:59]} 9. O-O {[%clk 0:02:52]}  Bd6 {[%clk 0:02:58]} 10. d3 {[%clk 0:02:52]}  Qe7 {[%clk 0:02:58]} 11. Nd2 {[%clk 0:02:51]}  O-O {[%clk 0:02:46]} 12. a4 {[%clk 0:02:39]}  a5 {[%clk 0:02:36]} 13. Rae1 {[%clk 0:02:39]}  Bb4 {[%clk 0:02:32]} 14. Qd1 {[%clk 0:02:39]}  Rfe8 {[%clk 0:02:28]} 15. f4 {[%clk 0:02:39]}  exf4 {[%clk 0:02:22]} 16. exf4 {[%clk 0:02:36]}  Qc5+ {[%clk 0:02:22]} 17. Kh1 {[%clk 0:02:31]}  Rxe1 {[%clk 0:02:11]} 18. Rxe1 {[%clk 0:02:31]}  Qf2 {[%clk 0:02:11]} 19. c3 {[%clk 0:02:32]}  Bd6 {[%clk 0:02:03]} 20. Rf1 {[%clk 0:02:32]}  Qg3 {[%clk 0:01:46]} 21. Rf3 {[%clk 0:02:26]}  Qh4 {[%clk 0:01:46]} 22. Kg1 {[%clk 0:02:08]}  Re8 {[%clk 0:01:32]} 23. Kf1 {[%clk 0:02:06]}  Nc5 {[%clk 0:01:06]} 24. c4 {[%clk 0:01:39]}  h5 {[%clk 0:00:47]} 25. g5 {[%clk 0:01:27]}  Ng4 {[%clk 0:00:48]} 26. hxg4 {[%clk 0:01:18]}  hxg4 {[%clk 0:00:48]} 27. Rf2 {[%clk 0:01:18]}  Nxd3 {[%clk 0:00:43]} 28. Re2 {[%clk 0:01:02]}  Re3 {[%clk 0:00:34]} 29. Bd4 {[%clk 0:00:54]}  Re7 {[%clk 0:00:07]} 30. Rxe7 {[%clk 0:00:48]}  Bxe7 {[%clk 0:00:06]} 31. Qe2 {[%clk 0:00:43]}  dxc4 {[%clk 0:00:00]} 32. Qxe7 {[%clk 0:00:32]} 1-0

[Event "December 19 Late 2023"]
[Site "https://www.chess.com"]
[Date "2023.12.19"]
[Round "2"]
[White "Rangel, Daniel"]
[Black "Mikaelyan, Arman"]
[Result "0-1"]
[Board "51"]
[TimeControl "180+1"]
[WhiteFideId "2124475"]
[BlackFideId "13304852"]
[WhiteElo "2267"]
[BlackElo "2445"]
[WhiteTeam "BRA"]
[BlackTeam "ARM"]
[WhiteClock "0:00:51"]
[BlackClock "0:01:36"]

1. c4 {[%clk 0:03:00]}  g6 {[%clk 0:02:58]} 2. g3 {[%clk 0:03:01]}  Bg7 {[%clk 0:02:59]} 3. Bg2 {[%clk 0:03:01]}  d6 {[%clk 0:02:59]} 4. Nf3 {[%clk 0:03:02]}  Nd7 {[%clk 0:02:54]} 5. O-O {[%clk 0:03:03]}  e5 {[%clk 0:02:54]} 6. Nc3 {[%clk 0:03:01]}  Ne7 {[%clk 0:02:54]} 7. d4 {[%clk 0:03:01]}  exd4 {[%clk 0:02:55]} 8. Nxd4 {[%clk 0:03:01]}  O-O {[%clk 0:02:55]} 9. b3 {[%clk 0:03:01]}  Nf5 {[%clk 0:02:44]} 10. Nxf5 {[%clk 0:02:18]}  Bxc3 {[%clk 0:02:43]} 11. Nh6+ {[%clk 0:02:18]}  Kg7 {[%clk 0:02:40]} 12. Bd2 {[%clk 0:02:06]}  Bxd2 {[%clk 0:02:13]} 13. Qxd2 {[%clk 0:02:05]}  f5 {[%clk 0:02:11]} 14. g4 {[%clk 0:01:43]}  f4 {[%clk 0:02:04]} 15. Qd4+ {[%clk 0:01:22]}  Kxh6 {[%clk 0:02:00]} 16. e3 {[%clk 0:01:18]}  Qf6 {[%clk 0:01:55]} 17. Qd2 {[%clk 0:01:13]}  Ne5 {[%clk 0:01:48]} 18. h3 {[%clk 0:01:06]}  f3 {[%clk 0:01:43]} 19. Bh1 {[%clk 0:01:00]}  Qh4 {[%clk 0:01:40]} 20. e4+ {[%clk 0:00:59]}  Kg7 {[%clk 0:01:39]} 21. Qd1 {[%clk 0:00:51]}  Qxh3 {[%clk 0:01:36]} 0-1

[Event "December 19 Late 2023"]
[Site "https://www.chess.com"]
[Date "2023.12.19"]
[Round "2"]
[White "Srdanovic, Jovana"]
[Black "Dourerassou, Jonathan"]
[Result "0-1"]
[Board "53"]
[TimeControl "180+1"]
[WhiteFideId "954810"]
[BlackFideId "628050"]
[WhiteElo "2123"]
[BlackElo "2499"]
[WhiteTeam "SRB"]
[BlackTeam "FRA"]
[WhiteClock "0:00:15"]
[BlackClock "0:01:29"]

1. d4 {[%clk 0:02:59]}  Nf6 {[%clk 0:02:58]} 2. c4 {[%clk 0:02:59]}  g6 {[%clk 0:02:58]} 3. Nc3 {[%clk 0:02:58]}  d5 {[%clk 0:02:58]} 4. Nf3 {[%clk 0:02:56]}  Bg7 {[%clk 0:02:58]} 5. h4 {[%clk 0:02:56]}  dxc4 {[%clk 0:02:57]} 6. e4 {[%clk 0:02:56]}  c5 {[%clk 0:02:56]} 7. d5 {[%clk 0:02:56]}  Qa5 {[%clk 0:02:55]} 8. Bd2 {[%clk 0:02:50]}  b5 {[%clk 0:02:55]} 9. e5 {[%clk 0:02:33]}  Nfd7 {[%clk 0:02:55]} 10. e6 {[%clk 0:02:33]}  fxe6 {[%clk 0:02:55]} 11. dxe6 {[%clk 0:02:33]}  Nf6 {[%clk 0:02:44]} 12. Ng5 {[%clk 0:02:29]}  b4 {[%clk 0:02:39]} 13. Nce4 {[%clk 0:02:17]}  Nxe4 {[%clk 0:02:36]} 14. Nxe4 {[%clk 0:02:17]}  c3 {[%clk 0:02:27]} 15. Bg5 {[%clk 0:01:30]}  cxb2 {[%clk 0:02:16]} 16. Rb1 {[%clk 0:01:29]}  Bxe6 {[%clk 0:02:14]} 17. Nd6+ {[%clk 0:00:43]}  exd6 {[%clk 0:01:52]} 18. Qxd6 {[%clk 0:00:44]}  Bc3+ {[%clk 0:01:49]} 19. Ke2 {[%clk 0:00:36]}  Qa6+ {[%clk 0:01:45]} 20. Qxa6 {[%clk 0:00:34]}  Nxa6 {[%clk 0:01:45]} 21. Kf3 {[%clk 0:00:33]}  O-O+ {[%clk 0:01:45]} 22. Kg3 {[%clk 0:00:29]}  Nc7 {[%clk 0:01:45]} 23. h5 {[%clk 0:00:27]}  Nd5 {[%clk 0:01:40]} 24. hxg6 {[%clk 0:00:26]}  Be5+ {[%clk 0:01:35]} 25. f4 {[%clk 0:00:25]}  Nxf4 {[%clk 0:01:35]} 26. gxh7+ {[%clk 0:00:23]}  Kh8 {[%clk 0:01:35]} 27. Kh4 {[%clk 0:00:15]}  Bxa2 {[%clk 0:01:29]} 0-1

[Event "December 19 Late 2023"]
[Site "https://www.chess.com"]
[Date "2023.12.19"]
[Round "2"]
[White "Ghasi, Ameet K"]
[Black "Korchynskyi, Mykola"]
[Result "0-1"]
[Board "54"]
[TimeControl "180+1"]
[WhiteFideId "409200"]
[BlackFideId "34138005"]
[WhiteElo "2558"]
[BlackElo "2007"]
[WhiteTeam "ENG"]
[BlackTeam "UKR"]
[WhiteClock "0:00:15"]
[BlackClock "0:00:11"]

1. c4 {[%clk 0:03:00]}  e6 {[%clk 0:02:57]} 2. Nf3 {[%clk 0:03:00]}  d5 {[%clk 0:02:58]} 3. e3 {[%clk 0:02:59]}  Nf6 {[%clk 0:02:52]} 4. b3 {[%clk 0:02:59]}  Be7 {[%clk 0:02:51]} 5. Bb2 {[%clk 0:02:59]}  O-O {[%clk 0:02:51]} 6. Nc3 {[%clk 0:02:58]}  b6 {[%clk 0:02:51]} 7. cxd5 {[%clk 0:02:57]}  exd5 {[%clk 0:02:50]} 8. d4 {[%clk 0:02:57]}  Bb7 {[%clk 0:02:50]} 9. Bd3 {[%clk 0:02:58]}  Nbd7 {[%clk 0:02:51]} 10. O-O {[%clk 0:02:59]}  Ne4 {[%clk 0:02:51]} 11. Ne2 {[%clk 0:03:00]}  Ndf6 {[%clk 0:02:51]} 12. Ng3 {[%clk 0:03:00]}  c5 {[%clk 0:02:51]} 13. Rc1 {[%clk 0:03:00]}  Rc8 {[%clk 0:02:51]} 14. Rc2 {[%clk 0:02:59]}  h6 {[%clk 0:02:49]} 15. Qa1 {[%clk 0:02:58]}  Re8 {[%clk 0:02:42]} 16. Rfc1 {[%clk 0:02:58]}  Bd6 {[%clk 0:02:33]} 17. Ne5 {[%clk 0:02:53]}  Qe7 {[%clk 0:02:14]} 18. Nf5 {[%clk 0:02:48]}  Qf8 {[%clk 0:02:14]} 19. Bb5 {[%clk 0:01:54]}  Red8 {[%clk 0:02:11]} 20. f3 {[%clk 0:01:51]}  Ng5 {[%clk 0:02:10]} 21. Nxd6 {[%clk 0:01:50]}  Qxd6 {[%clk 0:02:09]} 22. Bd3 {[%clk 0:01:26]}  Ne6 {[%clk 0:02:04]} 23. Bf5 {[%clk 0:01:22]}  cxd4 {[%clk 0:02:02]} 24. exd4 {[%clk 0:01:19]}  Rxc2 {[%clk 0:02:01]} 25. Rxc2 {[%clk 0:01:20]}  Rc8 {[%clk 0:01:50]} 26. Qc1 {[%clk 0:01:17]}  Rxc2 {[%clk 0:01:50]} 27. Qxc2 {[%clk 0:01:18]}  Qb4 {[%clk 0:01:47]} 28. Bc3 {[%clk 0:01:07]}  Qb5 {[%clk 0:01:44]} 29. a4 {[%clk 0:01:00]}  Qe8 {[%clk 0:01:44]} 30. Bb2 {[%clk 0:00:54]}  Nd7 {[%clk 0:01:31]} 31. Nd3 {[%clk 0:00:47]}  Nf6 {[%clk 0:01:24]} 32. Qd2 {[%clk 0:00:42]}  Ba6 {[%clk 0:01:22]} 33. Ne5 {[%clk 0:00:40]}  Nd7 {[%clk 0:01:19]} 34. Nc6 {[%clk 0:00:39]}  Ndc5 {[%clk 0:00:59]} 35. dxc5 {[%clk 0:00:20]}  Qxc6 {[%clk 0:00:59]} 36. b4 {[%clk 0:00:20]}  Qxa4 {[%clk 0:00:29]} 37. cxb6 {[%clk 0:00:19]}  axb6 {[%clk 0:00:27]} 38. h4 {[%clk 0:00:20]}  Qd7 {[%clk 0:00:19]} 39. Bd4 {[%clk 0:00:14]}  Qd6 {[%clk 0:00:17]} 40. Bf2 {[%clk 0:00:11]}  Bc4 {[%clk 0:00:14]} 41. g3 {[%clk 0:00:07]}  b5 {[%clk 0:00:15]} 42. Qb2 {[%clk 0:00:06]}  Qe7 {[%clk 0:00:10]} 43. Qe5 {[%clk 0:00:05]}  Qc7 {[%clk 0:00:05]} 44. Qe1 {[%clk 0:00:05]}  Qd7 {[%clk 0:00:05]} 45. g4 {[%clk 0:00:04]}  Qd6 {[%clk 0:00:04]} 46. Qe3 {[%clk 0:00:03]}  d4 {[%clk 0:00:03]} 47. Qd2 {[%clk 0:00:03]}  d3 {[%clk 0:00:03]} 48. Be4 {[%clk 0:00:03]}  Nf4 {[%clk 0:00:03]} 49. Be3 {[%clk 0:00:02]}  Ne2+ {[%clk 0:00:04]} 50. Kf2 {[%clk 0:00:02]}  Qg3+ {[%clk 0:00:04]} 51. Kf1 {[%clk 0:00:03]}  Qh3+ {[%clk 0:00:05]} 52. Kf2 {[%clk 0:00:04]}  Qh2+ {[%clk 0:00:05]} 53. Kf1 {[%clk 0:00:04]}  Ng3+ {[%clk 0:00:05]} 54. Ke1 {[%clk 0:00:04]}  Qh1+ {[%clk 0:00:05]} 55. Kf2 {[%clk 0:00:04]}  Nxe4+ {[%clk 0:00:03]} 56. fxe4 {[%clk 0:00:05]}  Qxe4 {[%clk 0:00:04]} 57. Bf4 {[%clk 0:00:05]}  Bd5 {[%clk 0:00:05]} 58. Qe3 {[%clk 0:00:05]}  Qg2+ {[%clk 0:00:05]} 59. Ke1 {[%clk 0:00:06]}  Qxg4 {[%clk 0:00:05]} 60. Kd2 {[%clk 0:00:06]}  Qe6 {[%clk 0:00:06]} 61. Qxd3 {[%clk 0:00:06]}  Bc4 {[%clk 0:00:06]} 62. Qd8+ {[%clk 0:00:06]}  Kh7 {[%clk 0:00:06]} 63. Qd4 {[%clk 0:00:07]}  Qe2+ {[%clk 0:00:06]} 64. Kc3 {[%clk 0:00:07]}  Qf3+ {[%clk 0:00:07]} 65. Be3 {[%clk 0:00:07]}  Qf5 {[%clk 0:00:07]} 66. Kd2 {[%clk 0:00:07]}  g5 {[%clk 0:00:06]} 67. hxg5 {[%clk 0:00:07]}  hxg5 {[%clk 0:00:07]} 68. Qd6 {[%clk 0:00:07]}  Qg6 {[%clk 0:00:06]} 69. Qg3 {[%clk 0:00:07]}  g4 {[%clk 0:00:06]} 70. Qh4+ {[%clk 0:00:06]}  Kg7 {[%clk 0:00:04]} 71. Bd4+ {[%clk 0:00:07]}  f6 {[%clk 0:00:05]} 72. Qg3 {[%clk 0:00:07]}  Qf5 {[%clk 0:00:05]} 73. Qc7+ {[%clk 0:00:07]}  Kg6 {[%clk 0:00:05]} 74. Qd6 {[%clk 0:00:07]}  Qd3+ {[%clk 0:00:05]} 75. Kc1 {[%clk 0:00:07]}  Qf1+ {[%clk 0:00:05]} 76. Kb2 {[%clk 0:00:07]}  Qe2+ {[%clk 0:00:06]} 77. Ka1 {[%clk 0:00:07]}  Qf1+ {[%clk 0:00:05]} 78. Kb2 {[%clk 0:00:07]}  Qf3 {[%clk 0:00:04]} 79. Qd8 {[%clk 0:00:06]}  g3 {[%clk 0:00:04]} 80. Qe8+ {[%clk 0:00:06]}  Bf7 {[%clk 0:00:03]} 81. Qe3 {[%clk 0:00:03]}  Qxe3 {[%clk 0:00:02]} 82. Bxe3 {[%clk 0:00:04]}  Kf5 {[%clk 0:00:03]} 83. Kc3 {[%clk 0:00:04]}  Ke4 {[%clk 0:00:04]} 84. Kd2 {[%clk 0:00:04]}  Kf3 {[%clk 0:00:05]} 85. Bc5 {[%clk 0:00:04]}  f5 {[%clk 0:00:04]} 86. Ke1 {[%clk 0:00:04]}  Kg2 {[%clk 0:00:04]} 87. Ke2 {[%clk 0:00:04]}  Kh2 {[%clk 0:00:05]} 88. Kf3 {[%clk 0:00:03]}  g2 {[%clk 0:00:05]} 89. Kf4 {[%clk 0:00:03]}  g1=Q {[%clk 0:00:05]} 90. Bxg1+ {[%clk 0:00:04]}  Kxg1 {[%clk 0:00:06]} 91. Kxf5 {[%clk 0:00:05]}  Bc4 {[%clk 0:00:07]} 92. Ke5 {[%clk 0:00:05]}  Kf1 {[%clk 0:00:07]} 93. Kd4 {[%clk 0:00:06]}  Ke1 {[%clk 0:00:08]} 94. Kc3 {[%clk 0:00:07]}  Kd1 {[%clk 0:00:09]} 95. Kb2 {[%clk 0:00:08]}  Kd2 {[%clk 0:00:09]} 96. Ka3 {[%clk 0:00:09]}  Kd3 {[%clk 0:00:06]} 97. Kb2 {[%clk 0:00:10]}  Bd5 {[%clk 0:00:07]} 98. Ka3 {[%clk 0:00:11]}  Kc4 {[%clk 0:00:07]} 99. Kb2 {[%clk 0:00:12]}  Kxb4 {[%clk 0:00:08]} 100. Kb1 {[%clk 0:00:11]}  Ka3 {[%clk 0:00:08]} 101. Ka1 {[%clk 0:00:12]}  b4 {[%clk 0:00:09]} 102. Kb1 {[%clk 0:00:13]}  b3 {[%clk 0:00:09]} 103. Ka1 {[%clk 0:00:14]}  b2+ {[%clk 0:00:10]} 104. Kb1 {[%clk 0:00:15]}  Be4# {[%clk 0:00:11]} 0-1

[Event "December 19 Late 2023"]
[Site "https://www.chess.com"]
[Date "2023.12.19"]
[Round "2"]
[White "Shapiro, Viktor"]
[Black "Seemann, Jakub"]
[Result "0-1"]
[Board "55"]
[TimeControl "180+1"]
[WhiteFideId "4175700"]
[BlackFideId "21874697"]
[WhiteElo "2044"]
[BlackElo "2332"]
[WhiteTeam "RUS"]
[BlackTeam "POL"]
[WhiteClock "0:00:30"]
[BlackClock "0:00:46"]

1. c4 {[%clk 0:03:00]}  Nf6 {[%clk 0:02:59]} 2. Nc3 {[%clk 0:03:00]}  g6 {[%clk 0:03:00]} 3. d4 {[%clk 0:02:59]}  d6 {[%clk 0:03:01]} 4. Nf3 {[%clk 0:03:00]}  Bg7 {[%clk 0:03:01]} 5. Bg5 {[%clk 0:03:00]}  O-O {[%clk 0:03:02]} 6. e3 {[%clk 0:03:01]}  c5 {[%clk 0:03:02]} 7. Be2 {[%clk 0:03:00]}  h6 {[%clk 0:02:56]} 8. Bh4 {[%clk 0:02:59]}  cxd4 {[%clk 0:02:56]} 9. exd4 {[%clk 0:02:59]}  Bg4 {[%clk 0:02:46]} 10. O-O {[%clk 0:02:57]}  Nc6 {[%clk 0:02:45]} 11. d5 {[%clk 0:02:49]}  Bxf3 {[%clk 0:02:45]} 12. Bxf3 {[%clk 0:02:49]}  Ne5 {[%clk 0:02:46]} 13. Be2 {[%clk 0:02:49]}  Rc8 {[%clk 0:02:45]} 14. b3 {[%clk 0:02:48]}  Nfd7 {[%clk 0:02:41]} 15. Rc1 {[%clk 0:02:48]}  g5 {[%clk 0:02:39]} 16. Bg3 {[%clk 0:02:47]}  Ng6 {[%clk 0:02:40]} 17. Bh5 {[%clk 0:02:35]}  Nde5 {[%clk 0:02:39]} 18. Ne2 {[%clk 0:02:29]}  b5 {[%clk 0:02:20]} 19. cxb5 {[%clk 0:02:21]}  Qb6 {[%clk 0:02:19]} 20. a4 {[%clk 0:02:19]}  f5 {[%clk 0:02:13]} 21. Bxe5 {[%clk 0:01:53]}  Nxe5 {[%clk 0:02:14]} 22. Rc6 {[%clk 0:01:44]}  Nxc6 {[%clk 0:02:09]} 23. dxc6 {[%clk 0:01:44]}  Qc5 {[%clk 0:02:06]} 24. Qd3 {[%clk 0:01:39]}  d5 {[%clk 0:02:00]} 25. Rc1 {[%clk 0:01:31]}  Qd6 {[%clk 0:02:00]} 26. Bf3 {[%clk 0:01:15]}  e6 {[%clk 0:01:57]} 27. g3 {[%clk 0:01:13]}  Rfd8 {[%clk 0:01:55]} 28. Rd1 {[%clk 0:01:13]}  a6 {[%clk 0:01:45]} 29. Nd4 {[%clk 0:01:05]}  axb5 {[%clk 0:01:44]} 30. axb5 {[%clk 0:01:04]}  Kh8 {[%clk 0:01:23]} 31. Qe3 {[%clk 0:00:58]}  g4 {[%clk 0:01:02]} 32. Be2 {[%clk 0:00:53]}  Bxd4 {[%clk 0:00:57]} 33. Qxh6+ {[%clk 0:00:49]}  Kg8 {[%clk 0:00:57]} 34. Rxd4 {[%clk 0:00:50]}  e5 {[%clk 0:00:47]} 35. Rxd5 {[%clk 0:00:46]}  Qxh6 {[%clk 0:00:46]} 36. Rxd8+ {[%clk 0:00:37]}  Rxd8 {[%clk 0:00:47]} 37. c7 {[%clk 0:00:38]}  Rc8 {[%clk 0:00:47]} 38. Bc4+ {[%clk 0:00:30]}  Kf8 {[%clk 0:00:46]} 0-1

[Event "December 19 Late 2023"]
[Site "https://www.chess.com"]
[Date "2023.12.19"]
[Round "2"]
[White "Adewumi, Tanitoluwa"]
[Black "Serban, Cristian-Stefan"]
[Result "1-0"]
[Board "56"]
[TimeControl "180+1"]
[WhiteFideId "30966396"]
[BlackFideId "1241443"]
[WhiteElo "2325"]
[BlackElo "2040"]
[WhiteTeam "USA"]
[BlackTeam "ROU"]
[WhiteClock "0:00:02"]
[BlackClock "0:00:04"]

1. Nf3 {[%clk 0:03:00]}  d5 {[%clk 0:02:59]} 2. b3 {[%clk 0:03:00]}  Nf6 {[%clk 0:02:59]} 3. Bb2 {[%clk 0:03:00]}  c5 {[%clk 0:02:59]} 4. d3 {[%clk 0:03:00]}  Nc6 {[%clk 0:02:58]} 5. g3 {[%clk 0:03:01]}  e6 {[%clk 0:02:44]} 6. Bg2 {[%clk 0:03:01]}  Be7 {[%clk 0:02:44]} 7. O-O {[%clk 0:03:02]}  O-O {[%clk 0:02:45]} 8. Nbd2 {[%clk 0:03:02]}  a5 {[%clk 0:02:33]} 9. e4 {[%clk 0:03:03]}  a4 {[%clk 0:02:29]} 10. bxa4 {[%clk 0:02:56]}  Rxa4 {[%clk 0:02:26]} 11. c4 {[%clk 0:02:55]}  Ra8 {[%clk 0:02:22]} 12. e5 {[%clk 0:02:45]}  Ne8 {[%clk 0:02:22]} 13. d4 {[%clk 0:02:22]}  Nc7 {[%clk 0:02:13]} 14. cxd5 {[%clk 0:02:13]}  Nxd5 {[%clk 0:02:13]} 15. dxc5 {[%clk 0:02:11]}  Bxc5 {[%clk 0:02:14]} 16. Ne4 {[%clk 0:02:09]}  Be7 {[%clk 0:02:15]} 17. Nd4 {[%clk 0:01:59]}  Nxd4 {[%clk 0:02:05]} 18. Qxd4 {[%clk 0:02:00]}  Bd7 {[%clk 0:02:05]} 19. Nd6 {[%clk 0:01:57]}  Bc6 {[%clk 0:01:56]} 20. Rfd1 {[%clk 0:01:56]}  Ra4 {[%clk 0:01:49]} 21. Qc5 {[%clk 0:01:36]}  Qd7 {[%clk 0:01:27]} 22. a3 {[%clk 0:01:10]}  Rfa8 {[%clk 0:01:16]} 23. Rac1 {[%clk 0:01:08]}  R8a5 {[%clk 0:01:15]} 24. Qc2 {[%clk 0:01:04]}  Bxd6 {[%clk 0:01:13]} 25. exd6 {[%clk 0:01:02]}  Qxd6 {[%clk 0:01:14]} 26. Qc3 {[%clk 0:00:28]}  Qf8 {[%clk 0:00:55]} 27. Qb3 {[%clk 0:00:21]}  Ra8 {[%clk 0:00:49]} 28. h4 {[%clk 0:00:21]}  R4a5 {[%clk 0:00:47]} 29. h5 {[%clk 0:00:21]}  Ba4 {[%clk 0:00:44]} 30. Qc4 {[%clk 0:00:14]}  Bxd1 {[%clk 0:00:44]} 31. Rxd1 {[%clk 0:00:15]}  Ra4 {[%clk 0:00:41]} 32. Qe2 {[%clk 0:00:12]}  h6 {[%clk 0:00:31]} 33. Be4 {[%clk 0:00:06]}  Rc8 {[%clk 0:00:20]} 34. Bc2 {[%clk 0:00:05]}  Rac4 {[%clk 0:00:18]} 35. Bd3 {[%clk 0:00:04]}  R4c7 {[%clk 0:00:16]} 36. Qe4 {[%clk 0:00:04]}  f5 {[%clk 0:00:07]} 37. Qxe6+ {[%clk 0:00:04]}  Qf7 {[%clk 0:00:08]} 38. Bxf5 {[%clk 0:00:04]}  Rd8 {[%clk 0:00:06]} 39. Qe4 {[%clk 0:00:02]}  Re7 {[%clk 0:00:06]} 40. Qg4 {[%clk 0:00:02]}  Rde8 {[%clk 0:00:04]} 41. Bg6 {[%clk 0:00:02]}  Re1+ {[%clk 0:00:04]} 42. Rxe1 {[%clk 0:00:03]}  Rxe1+ {[%clk 0:00:05]} 43. Kg2 {[%clk 0:00:03]}  Qe6 {[%clk 0:00:05]} 44. Qf3 {[%clk 0:00:02]}  Re2 {[%clk 0:00:04]} 45. Bd4 {[%clk 0:00:02]}  Nf6 {[%clk 0:00:04]} 46. Bf5 {[%clk 0:00:02]}  Ne4 {[%clk 0:00:04]} 47. Bxe6+ {[%clk 0:00:02]}  Kh7 {[%clk 0:00:04]} 48. Qf5+ {[%clk 0:00:02]}  g6 {[%clk 0:00:04]} 49. Qf7# {[%clk 0:00:02]} 1-0